{"text_format":"2","workbook":"xlsx","n_sheets":6,"sheets":["Magyar rövid 1","Magyar rövid 2","Magyar rövid 3","Magyar rövid 4","Magyar rövid 5","x"],"not_rendered":{"charts":0,"images":0,"macros":0,"external_links":1,"defined_names":3,"comments":0,"pivot_tables":0},"unopened":[],"bounds":{"document_bytes":16777216,"sheet_cells":100000,"run_cost":"one","rows_first":2000,"rows_last":500,"rows_between":2000,"halvings":0,"cell_chars":16384,"cell_head_chars":4096},"cells_cut":0,"cells_raw":0,"read":"whole","date_system":"1900"}

{"sheet":"Magyar rövid 1","index":0,"n_rows":14,"n_cols":17,"rows_kept":14,"cut":false,"hidden":false,"merged":[[0,0,0,1],[0,14,0,16],[0,7,0,8]]}
["1. Magyartanár: nem tanári magyar szak > magyartanár mesterképzés (2 félév, 60 kredit) - NAPPALI (N_xxx) 2018 (felelős: Forgács Tamás)",{"$nulls":6},"kredit-elosztás",{"$nulls":6},"előkövetelmény"]
["kód","mérföldkő/tárgycsoport/tárgy","típus","követ.","felv.","óra","kredit","1.","2.","össz.","mindössz.","tantárgyfelelős","beosztás","hirdető tanszék/intézet","végleges id. telj.","végleges id. felv.","előzetes v.felt."]
["MK-TANFSZ","Tanári felkészítés szakos része",null,null,"köt",null,10,null,null,{"$f":"SUM(H4:I5)","v":8},{"$f":"SUM(J3)","v":8}]
["TO-R1-MAG-MK1","Az anyanyelvtanítás gyakorlata a középiskolában","szem","gyj","köt",2,4,4,null,null,null,"Schirm Anita","egyetemi adjunktus","Magyar Nyelvészeti Tanszék"]
["TO-R1-MAG-MK2","Az irodalomtanítás gyakorlata a középiskolában","szem","gyj","köt",2,4,null,4,null,null,"Cserjés Katalin","egyetemi docens","Magyar Irodalmi Tanszék"]
[{"$nulls":10},{"$f":"SUM(K3:K5)","v":8}]
[{"$nulls":6},"össz.:",{"$f":"SUM(H4:H5)","v":4},{"$f":"SUM(I4:I5)","v":4},{"$f":"SUM(H7:I7)","v":8}]
[]
["LEVELEZŐ (L_xxx)"]
["MK-TANFSZ","Tanári felkészítés szakos része",null,null,"köt",null,10,null,null,{"$f":"SUM(H11:I12)","v":8},{"$f":"SUM(J10)","v":8}]
["TO-R1L-MAG-MK1","Az anyanyelvtanítás gyakorlata a középiskolában","szem","gyj","köt",9,4,4,null,null,null,"Schirm Anita","egyetemi adjunktus","Magyar Nyelvészeti Tanszék"]
["TO-R1L-MAG-MK2","Az irodalomtanítás gyakorlata a középiskolában","szem","gyj","köt",9,4,null,4,null,null,"Cserjés Katalin","egyetemi docens","Magyar Irodalmi Tanszék"]
[{"$nulls":10},{"$f":"SUM(K10:K12)","v":8}]
[{"$nulls":6},"össz.:",{"$f":"SUM(H11:H12)","v":4},{"$f":"SUM(I11:I12)","v":4},{"$f":"SUM(H14:I14)","v":8}]

{"sheet":"Magyar rövid 2","index":1,"n_rows":56,"n_cols":17,"rows_kept":56,"cut":false,"hidden":false,"merged":[[0,0,0,1],[0,7,0,8],[0,14,0,16]]}
["2. Magyartanár: ált. isk. > középisk. magyartanár mesterképzés (2 félév, 60 kredit) - NAPPALI (N_xxx) 2018 (felelős: Forgács Tamás)",{"$nulls":6},"kredit-elosztás",{"$nulls":6},"előkövetelmény"]
["kód","mérföldkő/tárgycsoport/tárgy","típus","követ.","felv.","óra","kredit","1.","2.","össz.","mindössz.","tantárgyfelelős","beosztás","hirdető tanszék/intézet","végleges id. telj.","végleges id. felv.","előzetes v.felt."]
["MK-SZT","Szakmai tárgyak",{"$nulls":4},42,null,null,null,{"$f":"SUM(J4:J12)","v":42}]
["TO-R2-MAG-NY","Nyelvtudomány",null,null,"köt",null,21,null,null,{"$f":"SUM(H5:I11)","v":21}]
["TO-R2-MAG-NY1","A magyar nyelv történeti változásai az egyes nyelvi szinteken","szem","gyj","köt",2,3,3,null,null,null,"Forgács Tamás","egyetemi docens","Magyar Nyelvészeti Tanszék"]
["TO-R2-MAG-NY2","Alkalmazott nyelvészet 1: pszicholingvisztika","szem","gyj","köt",2,3,null,3,null,null,"Hoffmann Ildikó","egyetemi docens","Magyar Nyelvészeti Tanszék"]
["TO-R2-MAG-NY3","Alkalmazott nyelvészet 2: lexikológia, lexikográfia és kontrasztív nyelvészet","szem","gyj","köt",2,3,null,3,null,null,"Forgács Tamás","egyetemi docens","Magyar Nyelvészeti Tanszék"]
["TO-R2-MAG-NY4","A nyelvleírás elméletei az oktatás gyakorlatában","szem","gyj","köt",2,3,3,null,null,null,"Zsigri Gyula","egyetemi docens","Magyar Nyelvészeti Tanszék"]
["TO-R2-MAG-NY5","Nyelvi tervezés, nyelvi jogok és nyelvhasználat","szem","gyj","köt",2,3,3,null,null,null,"Németh Miklós","egyetemi docens","Magyar Nyelvészeti Tanszék"]
["TO-R2-MAG-NY6","Grammatikai elemzések","szem","koll","köt",2,3,3,null,null,null,"Németh Miklós","egyetemi docens","Magyar Nyelvészeti Tanszék"]
["TO-R2-MAG-NY7","Kötelezően választható nyelvészeti tárgy","ea","gyj","köt vál",2,3,null,3,null,null,"Németh T. Enikő","egyetemi tanár","Általános Nyelvészeti Tanszék"]
["TO-R2-MAG-IT","Irodalomtudomány",null,null,"köt",null,21,null,null,{"$f":"SUM(H13:I19)","v":21}]
["TO-R2-MAG-IT1","Gyermek- és ifjúsági irodalom","szem","gyj","köt",2,3,3,null,null,null,"Kulcsár-Szabó Ágnes","egyetemi docens","Magyar Irodalmi Tanszék"]
["TO-R2-MAG-IT2","Szövegelemzés: magyar és világirodalom","szem","gyj","köt",2,3,null,3,null,null,"Tóth Ákos","egyetemi adjunktus","Összehasonlító Irodalomtudományi Tanszék"]
["TO-R2-MAG-IT3","Szórakoztató irodalom és vizuális kultúra","szem","gyj","köt",2,3,3,null,null,null,"Hódosy Annamária","egyetemi adjunktus","Vizuális Kultúra és Irodalomelmélet Tanszék"]
["TO-R2-MAG-IT4","Irodalom és társművészetek","szem","gyj","köt",2,3,null,3,null,null,"Virág Zoltán","egyetemi docens","Magyar Irodalmi Tanszék"]
["TO-R2-MAG-IT5","Irodalom és populáris kultúra","szem","gyj","köt",2,3,null,3,null,null,"Kovács Krisztina","egyetemi adjunktus","Magyar Irodalmi Tanszék"]
["TO-R2-MAG-IT6","Szoros olvasás","szem","gyj","köt",2,3,3,null,null,null,"Szilágyi Zsófia","egyetemi tanár","Magyar Irodalmi Tanszék"]
["TO-R2-MAG-IT7","Irodalom és kultúra","szem","gyj","köt",2,3,null,3,null,null,"Kelemen Zoltán","egyetemi docens","Összehasonlító Irodalomtudományi Tanszék"]
["MK-SZV","Szabadon választható tárgy",{"$nulls":4},3,null,null,{"$f":"SUM(H21:I21)","v":3},{"$f":"SUM(J20)","v":3}]
["TO-R2-MAG-SZV1","Szabadon választható tárgy","szem","gyj","köt vál",2,3,3]
["MALVÁL","Kari szabadon választható",null,null,"köt vál",2,2]
["XM","Egyetemi szabadon választható",null,null,"köt vál",2,2]
["MK-TANFSZ","Tanári felkészítés szakos része",null,null,"köt",null,6,null,null,{"$f":"SUM(H25:I26)","v":6},{"$f":"SUM(J24)","v":6}]
["TO-R2-MAG-MK1","Az anyanyelvtanítás gyakorlata a középiskolában","szem","gyj","köt",2,3,3,null,null,null,"Schirm Anita","egyetemi adjunktus","Magyar Nyelvészeti Tanszék"]
["TO-R2-MAG-MK2","Az irodalomtanítás gyakorlata a középiskolában","szem","gyj","köt",2,3,null,3,null,null,"Cserjés Katalin","egyetemi docens","Magyar Irodalmi Tanszék"]
[{"$nulls":10},{"$f":"SUM(K3:K26)","v":51}]
[{"$nulls":6},"össz.:",{"$f":"SUM(H4:H26)","v":27},{"$f":"SUM(I4:I26)","v":24},{"$f":"SUM(H28:I28)","v":51}]
[]
["LEVELEZŐ (L_xxx)"]
["MK-SZT","Szakmai tárgyak",{"$nulls":4},42,null,null,null,{"$f":"SUM(J32:J47)","v":42}]
["TO-R2L-MAG-NY","Nyelvtudomány",null,null,"köt",null,21,null,null,{"$f":"SUM(H33:I39)","v":21}]
["TO-R2L-MAG-NY1","A magyar nyelv történeti változásai az egyes nyelvi szinteken","szem","gyj","köt",9,3,3,null,null,null,"Forgács Tamás","egyetemi docens","Magyar Nyelvészeti Tanszék"]
["TO-R2L-MAG-NY2","Alkalmazott nyelvészet 1: pszicholingvisztika","szem","gyj","köt",9,3,null,3,null,null,"Hoffmann Ildikó","egyetemi docens","Magyar Nyelvészeti Tanszék"]
["TO-R2L-MAG-NY3","Alkalmazott nyelvészet 2: lexikológia, lexikográfia és kontrasztív nyelvészet","szem","gyj","köt",9,3,null,3,null,null,"Forgács Tamás","egyetemi docens","Magyar Nyelvészeti Tanszék"]
["TO-R2L-MAG-NY4","A nyelvleírás elméletei az oktatás gyakorlatában","szem","gyj","köt",9,3,3,null,null,null,"Zsigri Gyula","egyetemi docens","Magyar Nyelvészeti Tanszék"]
["TO-R2L-MAG-NY5","Nyelvi tervezés, nyelvi jogok és nyelvhasználat","szem","gyj","köt",9,3,3,null,null,null,"Németh Miklós","egyetemi docens","Magyar Nyelvészeti Tanszék"]
["TO-R2L-MAG-NY6","Nyelvtani elemzések","szem","koll","köt",9,3,3,null,null,null,"Németh Miklós","egyetemi docens","Magyar Nyelvészeti Tanszék"]
["TO-R2L-MAG-NY7","Kötelezően választható nyelvészeti tárgyak 2","ea","gyj","köt vál",9,3,null,3,null,null,"Németh T. Enikő","egyetemi tanár","Általános Nyelvészeti Tanszék"]
["TO-MAG-IT","Irodalomtudomány",null,null,"köt",null,21,null,null,{"$f":"SUM(H41:I47)","v":21}]
["TO-R2L-MAG-IT1","Gyermek- és ifjúsági irodalom","szem","gyj","köt",9,3,3,null,null,null,"Kovács Krisztina","egyetemi adjunktus","Magyar Irodalmi Tanszék"]
["TO-R2L-MAG-IT2","Szövegelemzés: magyar és világirodalom","szem","gyj","köt",9,3,null,3,null,null,"Tóth Ákos","egyetemi adjunktus","Összehasonlító Irodalomtudományi Tanszék"]
["TO-R2L-MAG-IT3","Szórakoztató irodalom és vizuális kultúra","szem","gyj","köt",9,3,3,null,null,null,"Hódosy Annamária","egyetemi adjunktus","Vizuális Kultúra és Irodalomelmélet Tanszék"]
["TO-R2L-MAG-IT4","Irodalom és társművészetek","szem","gyj","köt",9,3,null,3,null,null,"Cserjés Katalin","egyetemi docens","Magyar Irodalmi Tanszék"]
["TO-R2L-MAG-IT5","Irodalom és populáris kultúra","szem","gyj","köt",9,3,null,3,null,null,"Kovács Krisztina","egyetemi adjunktus","Magyar Irodalmi Tanszék"]
["TO-R2L-MAG-IT6","Szoros olvasás","szem","gyj","köt",9,3,3,null,null,null,"Szilágyi Zsófia","egyetemi tanár","Magyar Irodalmi Tanszék"]
["TO-R2L-MAG-IT7","Irodalom és kultúra","szem","gyj","köt",9,3,null,3,null,null,"Kelemen Zoltán","egyetemi docens","Összehasonlító Irodalomtudományi Tanszék"]
["MK-SZV","Szabadon választható tárgy",{"$nulls":4},3,null,null,{"$f":"SUM(H49:I49)","v":3},{"$f":"SUM(J48)","v":3}]
["TO-R2L-MAG-SZV1","Szabadon választható tárgy","szem","gyj","köt vál",9,3,3]
["MALVÁL","Kari szabadon választható",null,null,"köt vál",9,2]
["XM","Egyetemi szabadon választható",null,null,"köt vál",9,2]
["MK-TANFSZ","Tanári felkészítés szakos része",null,null,"köt",null,6,null,null,{"$f":"SUM(H53:I54)","v":6},{"$f":"SUM(J52)","v":6}]
["TO-R2L-MAG-MK1","Az anyanyelvtanítás gyakorlata a középiskolában","szem","gyj","köt",9,3,3,null,null,null,"Schirm Anita","egyetemi adjunktus","Magyar Nyelvészeti Tanszék"]
["TO-R2L-MAG-MK2","Az irodalomtanítás gyakorlata a középiskolában","szem","gyj","köt",9,3,null,3,null,null,"Cserjés Katalin","egyetemi docens","Magyar Irodalmi Tanszék"]
[{"$nulls":10},{"$f":"SUM(K31:K54)","v":51}]
[{"$nulls":6},"össz.:",{"$f":"SUM(H33:H54)","v":27},{"$f":"SUM(I33:I54)","v":24},{"$f":"SUM(H56:I56)","v":51}]

{"sheet":"Magyar rövid 3","index":2,"n_rows":45,"n_cols":19,"rows_kept":45,"cut":false,"hidden":false,"merged":[[0,0,0,1],[0,7,0,10],[0,16,0,18]]}
["3. Magyartanár: más szakos tanár > magyartanár mesterképzés (4 félév, 120 kredit) - NAPPALI (N_xxx) 2018 (felelős: Forgács Tamás)",{"$nulls":6},"kreditelosztás",{"$nulls":8},"előkövetelmény"]
["kód","mérföldkő/tárgycsoport/tárgy","típus","követ.","felv.","óra","kredit","1.","2.","3.","4.","össz.","mindössz.","tantárgyfelelős","beosztás","hirdető tanszék/intézet","végleges id. telj.","végleges id. felv.","előzetes v.felt."]
["MK-SZT","Szakmai tárgyak",{"$nulls":4},94,{"$nulls":5},{"$f":"SUM(L4:L34)","v":94}]
["TO-R3-MAG-NY","Nyelvtudomány",null,null,"köt",null,47,{"$nulls":4},{"$f":"SUM(H5:K19)","v":47}]
["TO-R3-MAG-NY01","Bevezetés a nyelvtudományba","ea","koll","köt",2,3,3,{"$nulls":5},"Maleczki Márta","egyetemi docens","Általános Nyelvészeti Tanszék"]
["TO-R3-MAG-NY02","Nyelvtudományi proszeminárium","szem","gyj","köt",2,3,3,{"$nulls":5},"Sinkovics Balázs","egyetemi adjunktus","Magyar Nyelvészeti Tanszék"]
["TO-R3-MAG-NY03","Hangtan és alaktan","szem","gyj","köt",2,3,null,3,{"$nulls":4},"Zsigri Gyula","egyetemi docens","Magyar Nyelvészeti Tanszék"]
["TO-R3-MAG-NY04","A magyar nyelv finnugor rokonsága","szem","gyj","köt",2,3,null,3,{"$nulls":4},"Sipőcz Katalin","egyetemi docens","Magyar Nyelvészeti Tanszék"]
["TO-R3-MAG-NY05","Pragmatika és jelentés","ea","koll","köt",2,4,null,null,null,4,null,null,"Németh T. Enikő","egyetemi tanár","Általános Nyelvészeti Tanszék"]
["TO-R3-MAG-NY06","Helyesírás, norma, nyelvhasználat","szem","gyj","köt",2,3,null,null,3,null,null,null,"Sinkovics Balázs","egyetemi adjunktus","Magyar Nyelvészeti Tanszék"]
["TO-R3-MAG-NY07","Mondattan előadás","ea","koll","köt",2,3,null,3,{"$nulls":4},"Hoffmann Ildikó","egyetemi docens","Magyar Nyelvészeti Tanszék"]
["TO-R3-MAG-NY08","Mondattan szeminárium","szem","gyj","köt",2,3,null,3,{"$nulls":4},"Hoffmann Ildikó","egyetemi docens","Magyar Nyelvészeti Tanszék"]
["TO-R3-MAG-NY09","Nyelvtörténet előadás","ea","koll","köt",2,4,null,null,null,4,null,null,"Forgács Tamás","egyetemi docens","Magyar Nyelvészeti Tanszék"]
["TO-R3-MAG-NY10","Nyelvtörténet szeminárium","szem","gyj","köt",2,3,3,{"$nulls":5},"Forgács Tamás","egyetemi docens","Magyar Nyelvészeti Tanszék"]
["TO-R3-MAG-NY11","A magyar nyelv történeti változásai az egyes nyelvi szinteken","szem","gyj","köt",2,3,null,null,3,null,null,null,"Forgács Tamás","egyetemi docens","Magyar Nyelvészeti Tanszék"]
["TO-R3-MAG-NY12","Alkalmazott nyelvészet: lexikológia, lexikográfia és kontrasztív nyelvészet","szem","gyj","köt",2,3,null,null,null,3,null,null,"Forgács Tamás","egyetemi docens","Magyar Nyelvészeti Tanszék"]
["TO-R3-MAG-NY13","A nyelvleírás elméletei az oktatás gyakorlatában","szem","gyj","köt",2,3,null,null,3,null,null,null,"Zsigri Gyula","egyetemi docens","Magyar Nyelvészeti Tanszék"]
["TO-R3-MAG-NY14","Nyelvi tervezés, nyelvi jogok és nyelvhasználat","szem","gyj","köt",2,3,3,{"$nulls":5},"Németh Miklós","egyetemi docens","Magyar Nyelvészeti Tanszék"]
["TO-R3-MAG-NY15","Grammatikai elemzések","szem","gyj","köt",2,3,null,null,3,null,null,null,"Németh Miklós","egyetemi docens","Magyar Nyelvészeti Tanszék"]
["TO-R3-MAG-IT","Irodalomtudomány",null,null,"köt",null,47,{"$nulls":4},{"$f":"SUM(H21:K35)","v":47}]
["TO-R3-MAG-IT01","Bevezetés az irodalomtudományba","ea","koll","köt",2,3,3,{"$nulls":5},"Odorics Ferenc","egyetemi tanár","Vizuális Kultúra és Irodalomelmélet Tanszék"]
["TO-R3-MAG-IT02","Régi magyar irodalom előadás","ea","koll","köt",2,4,null,4,{"$nulls":4},"Font Zsuzsanna","egyetemi docens","Magyar Irodalmi Tanszék"]
["TO-R3-MAG-IT03","Klasszikus magyar irodalom előadás","ea","koll","köt",2,3,null,null,3,null,null,null,"Hász-Fehér Katalin","egyetemi docens","Magyar Irodalmi Tanszék"]
["TO-R3-MAG-IT04","Modern és kortárs magyar irodalom előadás","ea","koll","köt",2,3,null,null,3,null,null,null,"Szilágyi Zsófia","egyetemi tanár","Magyar Irodalmi Tanszék"]
["TO-R3-MAG-IT05","Magyar irodalom szeminárium","szem","gyj","köt",2,3,null,null,null,3,null,null,"Szabó Gábor","egyetemi docens","Magyar Irodalmi Tanszék"]
["TO-R3-MAG-IT06","Világirodalom előadás 1","ea","koll","köt",2,3,3,{"$nulls":5},"Kelemen Zoltán","egyetemi docens","Összehasonlító Irodalomtudományi Tanszék"]
["TO-R3-MAG-IT07","Világirodalom előadás 2","ea","koll","köt",2,3,null,null,3,null,null,null,"Kelemen Zoltán","egyetemi docens","Összehasonlító Irodalomtudományi Tanszék"]
["TO-R3-MAG-IT08","Világirodalom szeminárium","szem","gyj","köt",2,3,null,null,null,3,null,null,"Kelemen Zoltán","egyetemi docens","Összehasonlító Irodalomtudományi Tanszék"]
["TO-R3-MAG-IT09","Irodalomelmélet előadás","ea","koll","köt",2,3,null,null,3,null,null,null,"Odorics Ferenc","egyetemi tanár","Vizuális Kultúra és Irodalomelmélet Tanszék"]
["TO-R3-MAG-IT10","Irodalomelmélet szeminárium","szem","gyj","köt",2,3,null,null,null,3,null,null,"Odorics Ferenc","egyetemi tanár","Vizuális Kultúra és Irodalomelmélet Tanszék"]
["TO-R3-MAG-IT11","Gyermek- és ifjúsági irodalom","szem","gyj","köt",2,3,3,{"$nulls":5},"Kulcsár-Szabó Ágnes","egyetemi docens","Magyar Irodalmi Tanszék"]
["TO-R3-MAG-IT12","Szövegelemzés: magyar és világirodalom","szem","gyj","köt",2,3,null,null,null,3,null,null,"Tóth Ákos","egyetemi adjunktus","Összehasonlító Irodalomtudományi Tanszék"]
["TO-R3-MAG-IT13","Szórakoztató irodalom és vizuális kultúra","szem","gyj","köt",2,3,null,null,3,null,null,null,"Hódosy Annamária","egyetemi adjunktus","Vizuális Kultúra és Irodalomelmélet Tanszék"]
["TO-R3-MAG-IT14","Irodalom és társművészetek","szem","gyj","köt",2,3,null,3,{"$nulls":4},"Virág Zoltán","egyetemi docens","Magyar Irodalmi Tanszék"]
["TO-R3-MAG-IT15","Irodalom és populáris kultúra","szem","gyj","köt",2,4,null,4,{"$nulls":4},"Kovács Krisztina","egyetemi adjunktus","Magyar Irodalmi Tanszék"]
["MK-SZV","Szabadon választható tárgy",{"$nulls":4},6,{"$nulls":4},{"$f":"SUM(H37:K38)","v":6},{"$f":"SUM(L36)","v":6}]
["TO-R3-MAG-SZV1","Szabadon választható tárgy","szem","gyj","köt vál",2,3,null,null,3]
["TO-R3-MAG-SZV2","Szabadon választható tárgy","szem","gyj","köt vál",2,3,null,null,null,3]
["MAVÁL","Kari szabadon választható",null,null,"köt vál",2,2]
["XM","Egyetemi szabadon választható",null,null,"köt vál",2,2]
["MK-TANFSZ","Tanári felkészítés szakos része",null,null,"köt",null,8,{"$nulls":4},{"$f":"SUM(H42:K43)","v":8},{"$f":"SUM(L41)","v":8}]
["TO-R3-MAG-M1","Az irodalomtanítás elméleti alapjai","szem","gyj","köt",2,4,4,{"$nulls":5},"Cserjés Katalin","egyetemi docens","Magyar Irodalmi Tanszék"]
["TO-R3-MAG-M2","Az anyanyelvtanítás elméleti alapjai","szem","gyj","köt",2,4,null,4,{"$nulls":4},"Schirm Anita","egyetemi adjunktus","Magyar Nyelvészeti Tanszék"]
[{"$nulls":12},{"$f":"SUM(M3:M43)","v":108}]
[{"$nulls":6},"össz.:",{"$f":"SUM(H5:H43)","v":25},{"$f":"SUM(I5:I43)","v":27},30,26,{"$f":"SUM(H45:K45)","v":108}]

{"sheet":"Magyar rövid 4","index":3,"n_rows":43,"n_cols":19,"rows_kept":43,"cut":false,"hidden":false,"merged":[[0,0,0,1],[0,7,0,10],[0,16,0,18]]}
["4. Magyartanár: tanító > ált. isk. magyartanár mesterképzés (4 félév, 120 kredit) - NAPPALI (N_xxx) 2018 (felelős: Forgács Tamás)",{"$nulls":6},"kreditelosztás",{"$nulls":8},"előkövetelmény"]
["kód","mérföldkő/tárgycsoport/tárgy","típus","követ.","felv.","óra","kredit","1.","2.","3.","4.","össz.","mindössz.","tantárgyfelelős","beosztás","hirdető tanszék/intézet","végleges id. telj.","végleges id. felv.","előzetes v.felt."]
["MK-SZT","Szakmai tárgyak",{"$nulls":4},84,{"$nulls":5},{"$f":"SUM(L4:L31)","v":84}]
["TO-R4-MAG-NY","Nyelvtudomány",null,null,"köt",null,42,{"$nulls":4},{"$f":"SUM(H5:K18)","v":42}]
["TO-R4-MAG-NY01","Bevezetés a nyelvtudományba","ea","koll","köt",2,3,3,{"$nulls":5},"Maleczki Márta","egyetemi docens","Általános Nyelvészeti Tanszék"]
["TO-R4-MAG-NY02","Nyelvtudományi proszeminárium","szem","gyj","köt",2,3,3,{"$nulls":5},"Sinkovics Balázs","egyetemi adjunktus","Magyar Nyelvészeti Tanszék"]
["TO-R4-MAG-NY03","Hangtan és alaktan","szem","gyj","köt",2,3,null,3,{"$nulls":4},"Zsigri Gyula","egyetemi docens","Magyar Nyelvészeti Tanszék"]
["TO-R4-MAG-NY04","A magyar nyelv finnugor rokonsága","szem","gyj","köt",2,3,null,3,{"$nulls":4},"Sipőcz Katalin","egyetemi docens","Magyar Nyelvészeti Tanszék"]
["TO-R4-MAG-NY05","Pragmatika és jelentés","ea","koll","köt",2,3,null,null,null,3,null,null,"Németh T. Enikő","egyetemi tanár","Általános Nyelvészeti Tanszék"]
["TO-R4-MAG-NY06","Helyesírás, norma, nyelvhasználat","szem","gyj","köt",2,3,null,null,3,null,null,null,"Sinkovics Balázs","egyetemi adjunktus","Magyar Nyelvészeti Tanszék"]
["TO-R4-MAG-NY07","Mondattan előadás","ea","koll","köt",2,3,null,3,{"$nulls":4},"Hoffmann Ildikó","egyetemi docens","Magyar Nyelvészeti Tanszék"]
["TO-R4-MAG-NY08","Mondattan szeminárium","szem","gyj","köt",2,3,null,3,{"$nulls":4},"Hoffmann Ildikó","egyetemi docens","Magyar Nyelvészeti Tanszék"]
["TO-R4-MAG-NY09","Nyelvtörténet szeminárium","szem","gyj","köt",2,3,null,null,3]
["TO-R4-MAG-NY10","Szövegtan és stilisztika","szem","gyj","köt",2,3,null,null,null,3,null,null,"Schirm Anita","egyetemi adjunktus","Magyar Nyelvészeti Tanszék"]
["TO-R4-MAG-NY11","Alkalmazott nyelvtudomány: anyanyelv-elsajátítás","ea","koll","köt",1,3,3,{"$nulls":5},"Hoffmann Ildikó","egyetemi docens","Magyar Nyelvészeti Tanszék"]
["TO-R4-MAG-NY12","Szöveg és tanulás","szem","gyj","köt",2,3,null,3,{"$nulls":4},"Schirm Anita","egyetemi docens","Magyar Nyelvészeti Tanszék"]
["TO-R4-MAG-NY13","Grammatikai elemzések","szem","gyj","köt",2,3,null,null,3,null,null,null,"Németh Miklós","egyetemi docens","Magyar Nyelvészeti Tanszék"]
["TO-R4-MAG-NY14","A magyar nyelv történeti változásai az egyes nyelvi szinteken","ea","koll","köt",2,3,null,null,3,null,null,null,"Forgács Tamás","egyetemi docens","Magyar Nyelvészeti Tanszék"]
["TO-R4-MAG-IT","Irodalomtudomány",null,null,"köt",null,42,{"$nulls":4},{"$f":"SUM(H20:K33)","v":42}]
["TO-R4-MAG-IT01","Bevezetés az irodalomtudományba","ea","koll","köt",2,3,3,{"$nulls":5},"Odorics Ferenc","egyetemi tanár","Vizuális Kultúra és Irodalomelmélet Tanszék"]
["TO-R4-MAG-IT02","Irodalomtudományi proszeminárium","szem","gyj","köt",2,3,3,{"$nulls":5},"Latzkovits Miklós","egyetemi docens","Magyar Irodalmi Tanszék"]
["TO-R4-MAG-IT03","Régi magyar irodalom előadás","ea","koll","köt",2,3,null,3,{"$nulls":4},"Font Zsuzsanna","egyetemi docens","Magyar Irodalmi Tanszék"]
["TO-R4-MAG-IT04","Klasszikus magyar irodalom előadás","ea","koll","köt",2,3,null,null,3,null,null,null,"Hász-Fehér Katalin","egyetemi docens","Magyar Irodalmi Tanszék"]
["TO-R4-MAG-IT05","Modern és kortárs magyar irodalom előadás","ea","koll","köt",2,3,null,null,3,null,null,null,"Szilágyi Zsófia","egyetemi tanár","Magyar Irodalmi Tanszék"]
["TO-R4-MAG-IT06","Világirodalom előadás 1","ea","koll","köt",2,3,3,{"$nulls":5},"Kelemen Zoltán","egyetemi docens","Összehasonlító Irodalomtudományi Tanszék"]
["TO-R4-MAG-IT07","Világirodalom előadás 2","ea","koll","köt",2,3,null,null,3,null,null,null,"Kelemen Zoltán","egyetemi docens","Összehasonlító Irodalomtudományi Tanszék"]
["TO-R4-MAG-IT08","Világirodalom szeminárium","szem","gyj","köt",2,3,null,3,{"$nulls":4},"Kelemen Zoltán","egyetemi docens","Összehasonlító Irodalomtudományi Tanszék"]
["TO-R4-MAG-IT09","Irodalomelmélet előadás","ea","koll","köt",2,3,null,null,3,null,null,null,"Odorics Ferenc","egyetemi tanár","Vizuális Kultúra és Irodalomelmélet Tanszék"]
["TO-R4-MAG-IT10","Irodalomelmélet szeminárium","szem","gyj","köt",2,3,null,null,null,3,null,null,"Odorics Ferenc","egyetemi tanár","Vizuális Kultúra és Irodalomelmélet Tanszék"]
["TO-R4-MAG-IT11","Gyermek- és ifjúsági irodalom","szem","gyj","köt",2,3,3,{"$nulls":5},"Kulcsár-Szabó Ágnes","egyetemi docens","Magyar Irodalmi Tanszék"]
["TO-R4-MAG-IT12","Szövegelemzés: magyar és világirodalom","szem","gyj","köt",2,3,null,3,{"$nulls":4},"Tóth Ákos","egyetemi adjunktus","Összehasonlító Irodalomtudományi Tanszék"]
["TO-R4-MAG-IT13","Irodalom és populáris kultúra","szem","gyj","köt",2,3,null,3,{"$nulls":4},"Kovács Krisztina","egyetemi adjunktus","Magyar Irodalmi Tanszék"]
["TO-R4-MAG-IT14","Szoros olvasás","szem","gyj","köt",2,3,3,{"$nulls":5},"Szilágyi Zsófia","egyetemi tanár","Magyar Irodalmi Tanszék"]
["MK-SZV","Szabadon választható tárgy",{"$nulls":4},6,{"$nulls":4},{"$f":"SUM(H35:K36)","v":6},{"$f":"SUM(L34)","v":6}]
["TO-R4-MAG-SZV1","Szabadon választható tárgy","szem","gyj","köt vál",2,3,3]
["TO-R4-MAG-SZV2","Szabadon választható tárgy","szem","gyj","köt vál",2,3,null,null,3]
["MAVÁL","Kari szabadon választható",null,null,"köt vál",2,2]
["XM","Egyetemi szabadon választható",null,null,"köt vál",2,2]
["MK-TANFSZ","Tanári felkészítés szakos része",null,null,"köt",null,6,{"$nulls":4},{"$f":"SUM(H40:K41)","v":6},{"$f":"SUM(L39)","v":6}]
["TO-R4-MAG-M1","Az irodalomtanítás elméleti alapjai","szem","gyj","köt",2,3,null,null,3,null,null,null,"Cserjés Katalin","egyetemi docens","Magyar Irodalmi Tanszék"]
["TO-R4-MAG-M2","Az anyanyelvtanítás elméleti alapjai","szem","gyj","köt",2,3,null,3,{"$nulls":4},"Schirm Anita","egyetemi adjunktus","Magyar Nyelvészeti Tanszék"]
[{"$nulls":12},{"$f":"SUM(M3:M41)","v":96}]
[{"$nulls":6},"össz.:",{"$f":"SUM(H5:H41)","v":27},{"$f":"SUM(I5:I41)","v":30},{"$f":"SUM(J5:J41)","v":30},{"$f":"SUM(K5:K41)","v":9},{"$f":"SUM(H43:K43)","v":96}]

{"sheet":"Magyar rövid 5","index":4,"n_rows":51,"n_cols":20,"rows_kept":51,"cut":false,"hidden":false,"merged":[[0,0,0,1],[0,7,0,11],[0,17,0,19]]}
["5. Magyartanár: tanító > középisk. magyartanár mesterképzés (5 félév, 150 kredit) - NAPPALI (N_xxx) 2018 (felelős: Forgács Tamás)",{"$nulls":6},"kreditelosztás",{"$nulls":9},"előkövetelmény"]
["kód","mérföldkő/tárgycsoport/tárgy","típus","követ.","felv.","óra","kredit","1.","2.","3.","4.","5.","össz.","mindössz.","tantárgyfelelős","beosztás","hirdető tanszék/intézet","végleges id. telj.","végleges id. felv.","előzetes v.felt."]
["MK-SZT","Szakmai tárgyak",{"$nulls":4},112,{"$nulls":6},{"$f":"SUM(M4:M35)","v":112}]
["TO-R5-MAG-NY","Nyelvtudomány",null,null,"köt",null,56,{"$nulls":5},{"$f":"SUM(H5:L22)","v":56}]
["TO-R5-MAG-NY01","Bevezetés a nyelvtudományba","ea","koll","köt",2,3,3,{"$nulls":6},"Maleczki Márta","egyetemi docens","Általános Nyelvészeti Tanszék"]
["TO-R5-MAG-NY02","Nyelvtudományi proszeminárium","szem","gyj","köt",2,3,3,{"$nulls":6},"Sinkovics Balázs","egyetemi adjunktus","Magyar Nyelvészeti Tanszék"]
["TO-R5-MAG-NY03","Hangtan és alaktan","szem","gyj","köt",2,3,null,4,{"$nulls":5},"Zsigri Gyula","egyetemi docens","Magyar Nyelvészeti Tanszék"]
["TO-R5-MAG-NY04","A magyar nyelv finnugor rokonsága","szem","gyj","köt",2,3,null,3,{"$nulls":5},"Sipőcz Katalin","egyetemi docens","Magyar Nyelvészeti Tanszék"]
["TO-R5-MAG-NY05","Pragmatika és jelentés","ea","koll","köt",2,3,null,null,null,3,null,null,null,"Németh T. Enikő","egyetemi tanár","Általános Nyelvészeti Tanszék"]
["TO-R5-MAG-NY06","Helyesírás, norma, nyelvhasználat","szem","gyj","köt",2,3,null,null,3,{"$nulls":4},"Sinkovics Balázs","egyetemi adjunktus","Magyar Nyelvészeti Tanszék"]
["TO-R5-MAG-NY07","Mondattan előadás","ea","koll","köt",2,3,null,3,{"$nulls":5},"Hoffmann Ildikó","egyetemi docens","Magyar Nyelvészeti Tanszék"]
["TO-R5-MAG-NY08","Mondattan szeminárium","szem","gyj","köt",2,3,null,3,{"$nulls":5},"Hoffmann Ildikó","egyetemi docens","Magyar Nyelvészeti Tanszék"]
["TO-R5-MAG-NY09","Nyelvtörténet előadás","ea","koll","köt",2,3,3,{"$nulls":6},"Forgács Tamás","egyetemi docens","Magyar Nyelvészeti Tanszék"]
["TO-R5-MAG-NY10","Nyelvtörténet szeminárium","szem","gyj","köt",2,3,3,{"$nulls":6},"Forgács Tamás","egyetemi docens","Magyar Nyelvészeti Tanszék"]
["TO-R5-MAG-NY11","Nyelv és társadalom","szem","gyj","köt",2,3,null,null,null,3,null,null,null,"Németh Miklós","egyetemi docens","Magyar Nyelvészeti Tanszék"]
["TO-R5-MAG-NY12","A magyar nyelv történeti változásai az egyes nyelvi szinteken","szem","gyj","köt",2,3,null,null,3,{"$nulls":4},"Forgács Tamás","egyetemi docens","Magyar Nyelvészeti Tanszék"]
["TO-R5-MAG-NY13","Alkalmazott nyelvészet 1: pszicholingvisztika","szem","gyj","köt",2,3,null,null,null,3,null,null,null,"Hoffmann Ildikó","egyetemi docens","Magyar Nyelvészeti Tanszék"]
["TO-R5-MAG-NY14","Alkalmazott nyelvészet 2: lexikológia, lexikográfia és kontrasztív nyelvészet","szem","gyj","köt",2,3,null,null,null,3,null,null,null,"Forgács Tamás","egyetemi docens","Magyar Nyelvészeti Tanszék"]
["TO-R5-MAG-NY15","A nyelvleírás elméletei az oktatás gyakorlatában","szem","gyj","köt",2,4,4,{"$nulls":6},"Zsigri Gyula","egyetemi docens","Magyar Nyelvészeti Tanszék"]
["TO-R5-MAG-NY16","Nyelvi tervezés, nyelvi jogok és nyelvhasználat","szem","gyj","köt",2,3,null,null,3,{"$nulls":4},"Németh Miklós","egyetemi docens","Magyar Nyelvészeti Tanszék"]
["TO-R5-MAG-NY17","Grammatikai elemzések","szem","gyj","köt",2,3,null,null,3,{"$nulls":4},"Németh Miklós","egyetemi docens","Magyar Nyelvészeti Tanszék"]
["TO-R5-MAG-NY18","Kötelezően választható nyelvészeti tárgy","ea","koll","köt vál",2,3,null,null,null,3,null,null,null,"Németh Miklós","egyetemi docens","Magyar Nyelvészeti Tanszék"]
["TO-R5-MAG-IT","Irodalomtudomány",null,null,"köt",null,56,{"$nulls":5},{"$f":"SUM(H24:L41)","v":56}]
["TO-R5-MAG-IT01","Bevezetés az irodalomtudományba","ea","koll","köt",2,3,3,{"$nulls":6},"Odorics Ferenc","egyetemi tanár","Vizuális Kultúra és Irodalomelmélet Tanszék"]
["TO-R5-MAG-IT02","Régi magyar irodalom előadás","ea","koll","köt",2,3,null,3,{"$nulls":5},"Font Zsuzsanna","egyetemi docens","Magyar Irodalmi Tanszék"]
["TO-R5-MAG-IT03","Klasszikus magyar irodalom előadás","ea","koll","köt",2,3,null,null,3,{"$nulls":4},"Hász-Fehér Katalin","egyetemi docens","Magyar Irodalmi Tanszék"]
["TO-R5-MAG-IT04","Modern és kortárs magyar irodalom előadás","ea","koll","köt",2,3,null,null,3,{"$nulls":4},"Szilágyi Zsófia","egyetemi tanár","Magyar Irodalmi Tanszék"]
["TO-R5-MAG-IT05","Magyar irodalom szeminárium","szem","gyj","köt",2,3,null,null,null,3,null,null,null,"Szabó Gábor","egyetemi docens","Magyar Irodalmi Tanszék"]
["TO-R5-MAG-IT06","Világirodalom előadás 1","ea","koll","köt",2,3,3,{"$nulls":6},"Kelemen Zoltán","egyetemi docens","Összehasonlító Irodalomtudományi Tanszék"]
["TO-R5-MAG-IT07","Világirodalom előadás 2","ea","koll","köt",2,3,null,null,3,{"$nulls":4},"Kelemen Zoltán","egyetemi docens","Összehasonlító Irodalomtudományi Tanszék"]
["TO-R5-MAG-IT08","Világirodalom szeminárium","szem","gyj","köt",2,3,null,null,null,3,null,null,null,"Kelemen Zoltán","egyetemi docens","Összehasonlító Irodalomtudományi Tanszék"]
["TO-R5-MAG-IT09","Irodalomelmélet előadás","ea","koll","köt",2,3,null,null,3,{"$nulls":4},"Odorics Ferenc","egyetemi tanár","Vizuális Kultúra és Irodalomelmélet Tanszék"]
["TO-R5-MAG-IT10","Irodalomelmélet szeminárium","szem","gyj","köt",2,3,null,null,null,3,null,null,null,"Odorics Ferenc","egyetemi tanár","Vizuális Kultúra és Irodalomelmélet Tanszék"]
["TO-R5-MAG-IT11","Gyermek- és ifjúsági irodalom","szem","gyj","köt",2,3,3,{"$nulls":6},"Kulcsár-Szabó Ágnes","egyetemi docens","Magyar Irodalmi Tanszék"]
["TO-R5-MAG-IT12","Szövegelemzés: magyar és világirodalom","szem","gyj","köt",2,3,null,null,null,3,null,null,null,"Tóth Ákos","egyetemi adjunktus","Összehasonlító Irodalomtudományi Tanszék"]
["TO-R5-MAG-IT13","Szórakoztató irodalom és vizuális kultúra","szem","gyj","köt",2,4,null,null,4,{"$nulls":4},"Hódosy Annamária","egyetemi adjunktus","Vizuális Kultúra és Irodalomelmélet Tanszék"]
["TO-R5-MAG-IT14","Irodalom és társművészetek","szem","gyj","köt",2,4,null,4,{"$nulls":5},"Virág Zoltán","egyetemi docens","Magyar Irodalmi Tanszék"]
["TO-R5-MAG-IT15","Irodalom és populáris kultúra","szem","gyj","köt",2,3,null,3,{"$nulls":5},"Kovács Krisztina","egyetemi adjunktus","Magyar Irodalmi Tanszék"]
["TO-R5-MAG-IT16","Szoros olvasás","szem","gyj","köt",2,3,3,{"$nulls":6},"Szilágyi Zsófia","egyetemi tanár","Magyar Irodalmi Tanszék"]
["TO-R5-MAG-IT17","Irodalom és kultúra","szem","gyj","köt",2,3,null,3,{"$nulls":5},"Kelemen Zoltán","egyetemi docens","Összehasonlító Irodalomtudományi Tanszék"]
["TO-R5-MAG-IT18","Adaptációk","ea","koll","köt",2,3,null,3,{"$nulls":5},"Tóth Zoltán János","egyetemi adjunktus","Vizuális Kultúra és Irodalomelmélet Tanszék"]
["MK-SZV","Szabadon választható tárgy",{"$nulls":4},8,{"$nulls":5},{"$f":"SUM(H43:L44)","v":8},{"$f":"SUM(M42)","v":8}]
["TO-R5-MAG-SZV1","Szabadon választható tárgy","szem","gyj","köt vál",2,4,4]
["TO-R5-MAG-SZV2","Szabadon választható tárgy","szem","gyj","köt vál",2,4,null,null,null,4]
["MAVÁL","Kari szabadon választható",null,null,"köt vál",2,2]
["XM","Egyetemi szabadon választható",null,null,"köt vál",2,2]
["MK-TANFSZ","Tanári felkészítés szakos része",null,null,"köt",null,6,{"$nulls":5},{"$f":"SUM(H48:L49)","v":6},{"$f":"SUM(M47)","v":6}]
["TO-R5-MAG-MK1","Az anyanyelvtanítás gyakorlata a középiskolában","szem","gyj","köt",2,3,null,null,3,{"$nulls":4},"Schirm Anita","egyetemi adjunktus","Magyar Nyelvészeti Tanszék"]
["TO-R5-MAG-MK2","Az irodalomtanítás gyakorlata a középiskolában","szem","gyj","köt",2,3,null,3,{"$nulls":5},"Cserjés Katalin","egyetemi docens","Magyar Irodalmi Tanszék"]
[{"$nulls":13},{"$f":"SUM(N3:N49)","v":126}]
[{"$nulls":6},"össz.:",{"$f":"SUM(H5:H49)","v":32},{"$f":"SUM(I5:I49)","v":32},{"$f":"SUM(J5:J49)","v":31},{"$f":"SUM(K5:K49)","v":31},{"$f":"SUM(L5:L49)","v":0},{"$f":"SUM(H51:L51)","v":126}]

{"sheet":"x","index":5,"n_rows":8,"n_cols":4,"rows_kept":8,"cut":false,"hidden":true,"merged":[]}
["beosztás",null,null,"tanszék"]
["egyetemi adjunktus",null,null,"Általános Nyelvészeti Tanszék"]
["egyetemi docens",null,null,"Finnugor Nyelvtudományi Tanszék"]
["egyetemi tanár",null,null,"Magyar Irodalmi Tanszék"]
["egyetemi tanársegéd",null,null,"Magyar Nyelvészeti Tanszék"]
[null,null,null,"Magyar Nyelvi és Irodalmi Intézet"]
[null,null,null,"Összehasonlító Irodalomtudományi Tanszék"]
[null,null,null,"Vizuális Kultúra és Irodalomelmélet Tanszék"]